[Event "Bangabandhu Premier Div League 2022"]
[Site "Dhaka"]
[Date "2022.12.08"]
[Round "9.2"]
[White "Mohammad Fahad, Rahman"]
[Black "Koustav Chatterjee"]
[Result "1/2-1/2"]
[ECO "D38"]
[WhiteElo "2380"]
[BlackElo "2496"]
[Annotator "TA"]
[PlyCount "89"]
[EventDate "2022.12.01"]
[EventCountry "BAN"]
[SourceTitle "playchess.com"]
[Source "ChessBase"]
[SourceQuality "1"]
[TimeControl "40/5400+30:1800+30"]

{[%evp 12,89,19,15,17,22,18,20,29,14,16,11,31,20,24,14,17,15,9,16,25,7,17,-41,0,0,0,-8,-7,-14,17,0,6,6,19,5,2,0,5,0,0,0,0,0,0,0,0,0,0,0,0,0,0,0,0,0,0,0,0,0,0,0,0,0,0,0,0,0,0,0,0,0,0,0,0,0,0,0,25,25]} 1. d4 {[%emt 0:00:17]} Nf6 {[%emt 0:04:57]} 2. c4 {[%emt 0:00:20]} e6 {[%emt 0:00:04]} 3. Nf3 {[%emt 0:00:14]} d5 {[%emt 0:00:06]} 4. Nc3 {[%emt 0:00:08]} Bb4 {[%emt 0:00:05]} 5. Qa4+ {[%emt 0:00:28]} Nc6 {[%emt 0:00:06]} 6. e3 {[%emt 0:00:09]} O-O {[%emt 0:00:08]} 7. Bd2 {[%emt 0:00:08] 7.Qc2 is the hot move.} a5 {[%emt 0:03:52] D38: Queen's Gambit Declined: Ragozin Defence (4 Nf3 Bb4).} 8. a3 {[%emt 0:03:52]} Bxc3 {[%emt 0:01:30]} 9. Bxc3 {[%emt 0:00:07]} Ne7 {[%emt 1:24:12] The position is equal.} 10. Qc2 {[%emt 0:06:31]} b6 {[%emt 0:00:00]} 11. cxd5 {[%emt 1:23:46]} exd5 {[%emt 0:01:00]} 12. Bd3 {[%emt 0:00:30]} Ba6 {[%emt 0:00:00]} 13. Bxa6 {[%emt 0:00:00]} Rxa6 {[%emt 0:00:00]} 14. O-O {[%emt 0:01:00]} Ne4 {[%emt 0:00:00] [#]} 15. Rac1 $146 {[%emt 0:00:30]} ({Predecessor:} 15. Rfc1 Qd7 16. b4 axb4 17. Bxb4 c5 18. dxc5 bxc5 19. Bxc5 Rc8 20. Qe2 Nxc5 21. Rxc5 Rxa3 22. Rxa3 Rxc5 {½-½ (39) Meissner,R (2156)-Urbaniak,M (1988) LSS email 2014}) 15... Re8 {[%emt 0:00:00]} (15... Ra8 {simplifies} 16. b3 Rc8 17. Nd2 Nxc3 18. Qxc3 Qd7) 16. Ne5 {[%emt 0:00:30]} c5 {[%emt 0:02:30]} 17. Qd3 {[%emt 0:00:00]} (17. a4 $11) 17... Ra8 {[%emt 0:00:00]} 18. dxc5 {[%emt 0:00:00]} bxc5 {[%emt 0:01:00]} 19. Rfd1 {[%emt 0:00:00]} Qb6 {[%emt 0:00:30]} 20. Qe2 {[%emt 0:00:00]} Nxc3 {[%emt 0:00:30]} 21. Rxc3 {[%emt 0:02:30] Black should prevent Nd7.} c4 {[%emt 0:00:00]} 22. Qc2 {[%emt 0:00:30]} a4 {[%emt 0:00:00] Inhibits b3.} 23. h3 {[%emt 0:00:00]} Ra5 {[%emt 0:01:30]} 24. Nf3 {[%emt 0:01:00]} (24. e4 {looks sharper.} Ng6 25. Nxg6 Rxe4 26. Nh4) 24... Nc6 {[%emt 0:00:30] Prevents e4.} 25. Rd2 {[%emt 0:00:00][%cal Oe3e4]} (25. e4 {seems wilder.} Rb5 26. Qxa4 Rxb2 27. Re3) 25... h6 {[%emt 0:00:00]} 26. Qd1 {[%emt 0:00:00]} Rd8 {[%emt 0:00:00]} 27. e4 {[%emt 0:00:00]} dxe4 {[%emt 0:00:00]} 28. Rxd8+ {[%emt 0:00:00]} Nxd8 {[%emt 0:00:00]} 29. Rxc4 {[%emt 0:00:00]} exf3 {[%emt 0:00:00]} 30. Rc8 {[%emt 0:00:00]} Kh7 {[%emt 0:03:00] [#] White must now prevent ...Ne6.} 31. Qxd8 $11 {[%emt 0:03:30][%mdl 4096] Endgame KQR-KQR} Qb5 {[%emt 0:00:00]} 32. Qg8+ {[%emt 0:00:00]} Kg6 {[%emt 0:00:00]} 33. Rc3 {[%emt 0:00:00]} Qxb2 {[%emt 0:01:30]} ({But not} 33... Ra7 34. Rxf3 (34. gxf3 Rd7 $11) 34... Qxb2 35. Rg3+ Kh5 36. Rxg7 (36. Qd8 g5 $14) 36... Qc1+ 37. Kh2 Qf4+ 38. Rg3 $18) 34. Rxf3 {[%emt 0:00:00]} Qc1+ {[%emt 0:00:00]} 35. Kh2 {[%emt 0:00:00]} Qc7+ {[%emt 0:00:00]} 36. Kg1 {[%emt 0:00:00]} Qc1+ {[%emt 0:00:00]} 37. Kh2 {[%emt 0:00:00]} Qc7+ {[%emt 0:00:00]} 38. Kg1 {[%emt 0:03:30]} Rd5 {[%emt 0:00:11][%cal Rd5d1] [#]} 39. Rg3+ $1 {[%emt 0:00:00]} Rg5 {[%emt 0:00:03]} 40. Rf3 {[%emt 0:00:00]} Rd5 {[%emt 0:00:31][%cal Rd5d1]} 41. Rg3+ $1 {[%emt 0:28:05]} Rg5 {[%emt 0:03:05]} 42. Rf3 {[%emt 0:00:00]} h5 {[%emt 0:30:40]} (42... Rb5 $5 43. Rg3+ $8 Rg5 $11) 43. Qf8 {[%emt 0:00:00]} Qb7 {[%emt 0:00:00]} 44. Qd6+ {[%emt 0:00:00]} Kh7 {[%emt 0:00:00]} (44... f6 $5 {[%cal Rb7f3]} 45. Qd3+ Kh6 $11) 45. Kh2 {[%emt 0:00:00] An even fight not without its subleties.   Weighted Error Value: White=0.05 (flawless) /Black=0.04 (flawless)} 1/2-1/2

[Event "Bangabandhu Premier Div League 2022"]
[Site "Dhaka"]
[Date "2022.12.08"]
[Round "9.2"]
[White "Aaryan Varshney"]
[Black "Ghosh, Diptayan"]
[Result "1/2-1/2"]
[ECO "D31"]
[WhiteElo "2312"]
[BlackElo "2544"]
[Annotator "TA"]
[PlyCount "78"]
[EventDate "2022.11.30"]
[EventType "team-tourn"]
[EventCountry "BAN"]
[SourceTitle "playchess.com"]
[Source "ChessBase"]
[SourceQuality "1"]
[TimeControl "40/5400+30:1800+30"]

{[%evp 9,78,19,27,20,24,25,54,18,26,14,11,14,19,17,32,12,14,14,6,6,8,0,0,0,6,0,0,-26,-25,-34,-33,-33,-14,-14,-2,-12,-2,-14,-2,-9,-12,-15,-12,-15,-15,-15,-22,-22,-24,-46,-8,-8,-8,-67,0,0,-8,0,0,-15,0,0,0,0,0,0,0,0,0,-4,0]} 1. d4 {[%emt 0:00:40]} d5 {[%emt 0:00:23]} 2. c4 {[%emt 0:00:05]} e6 {[%emt 0:00:04]} 3. Nc3 {[%emt 0:00:07]} a6 {[%emt 0:00:11]} 4. cxd5 {[%emt 0:00:16]} exd5 {[%emt 0:00:05]} 5. Nf3 {[%emt 0:00:04]} c6 {[%emt 0:00:11]} 6. Bf4 {[%emt 0:00:36] D31: Queen's Gambit Declined: Semi-Slav without ...Nf6 (+ Marshall Gambit and Noteboom) and Exchange Variation lines without ...Nf6.} Bd6 {[%emt 0:00:06]} 7. Bxd6 {[%emt 0:00:07]} Qxd6 {[%emt 0:00:03]} 8. e3 {[%emt 0:00:05] White is slightly better.} (8. e4 $5 {[%cal Rf1d3]}) 8... Ne7 {[%emt 0:00:04]} 9. Bd3 {[%emt 0:00:05]} Bg4 {[%emt 0:00:04]} 10. h3 {[%emt 0:05:52] [#]} Bxf3 $146 {[%emt 0:00:49]} ({Predecessor:} 10... Bh5 11. O-O f5 12. Be2 Bxf3 13. Bxf3 Nd7 14. Rc1 b5 15. Ne2 O-O 16. Nf4 Kh8 {1-0 (46) Borzan,A (1970)-Berke,A (2113) Valpovo 2020}) 11. Qxf3 {[%emt 0:00:09]} Nd7 {[%emt 0:00:02]} 12. O-O {[%emt 0:00:39]} O-O {[%emt 0:00:04]} 13. Rac1 {[%emt 0:01:33]} Rae8 {[%emt 0:05:45]} 14. Rfe1 {[%emt 0:01:23]} f5 {[%emt 0:04:37]} 15. Qf4 {[%emt 0:05:15]} Qxf4 {[%emt 0:12:44]} 16. exf4 {[%emt 0:00:02]} g6 {[%emt 0:00:32]} 17. Kf1 {[%emt 0:05:16][%cal Bg1f1,Bf1e1,Be1d2,Bd2e3,Be3f3,Bf3g2][%mdl 32]} Nc8 {[%emt 0:06:05]} 18. Rxe8 {[%emt 0:01:36]} Rxe8 {[%emt 0:00:05]} 19. Re1 {[%emt 0:00:30]} Rxe1+ {[%emt 0:02:22]} 20. Kxe1 $15 {[%emt 0:00:11][%mdl 4096] Endgame KBN-KNN} Nf8 {[%emt 0:00:04]} 21. b4 {[%emt 0:11:20]} Ne6 {[%emt 0:04:41][%csl LRd4,LRf4]} 22. Ne2 {[%emt 0:00:13]} Kf7 {[%emt 0:03:30]} 23. Kd2 {[%emt 0:02:54]} Ke7 {[%emt 0:03:57]} 24. a4 {[%emt 0:09:16]} Nd6 {[%emt 0:01:18]} 25. a5 {[%emt 0:02:37]} Kd7 {[%emt 0:01:49]} 26. Ke3 {[%emt 0:14:15]} Nc4+ {[%emt 0:05:30]} 27. Kf3 $1 {[%emt 0:00:27]} Ke7 {[%emt 0:03:13]} 28. g4 {[%emt 0:04:15]} Kf6 {[%emt 0:00:41]} 29. Kg2 {[%emt 0:17:12]} h6 {[%emt 0:04:35]} 30. Kf3 {[%emt 0:00:59]} Nd6 {[%emt 0:09:41]} 31. Ke3 {[%emt 0:05:03]} Nc7 {[%emt 0:32:45]} (31... fxg4 $1 $15 32. hxg4 h5) 32. Nc1 $11 {[%emt 0:03:51] The position is equal.} Nc4+ {[%emt 0:00:00]} 33. Kf3 {[%emt 0:00:36]} Ne6 {[%emt 0:00:00]} 34. Ne2 {[%emt 0:01:53]} h5 {[%emt 0:00:00]} 35. gxh5 {[%emt 0:01:27]} gxh5 {[%emt 0:00:00]} 36. h4 {[%emt 0:00:35]} Kg6 {[%emt 0:00:00]} 37. Bc2 {[%emt 0:03:13]} Kf6 {[%emt 0:00:00]} 38. Bd3 {[%emt 0:00:13]} Kg6 {[%emt 0:00:00]} 39. Bc2 {[%emt 0:00:06]} Kf6 {[%emt 0:04:00] Weighted Error Value: White=0.05 (flawless) /Black=0.06 (flawless)} 1/2-1/2

[Event "Bangabandhu Premier Div League 2022"]
[Site "Dhaka"]
[Date "2022.12.08"]
[Round "9.3"]
[White "Mitrabha, Guha"]
[Black "Kushagra Mohan"]
[Result "1-0"]
[ECO "A05"]
[WhiteElo "2474"]
[BlackElo "2390"]
[Annotator "TA"]
[PlyCount "157"]
[EventDate "2022.11.30"]
[EventType "team-tourn"]
[EventCountry "BAN"]
[SourceTitle "playchess.com"]
[Source "ChessBase"]
[SourceQuality "1"]
[TimeControl "40/5400+30:1800+30"]

{[%evp 10,157,18,6,20,18,35,37,43,-16,-11,-7,0,0,9,18,14,13,18,12,12,3,12,13,14,3,22,7,4,6,37,29,25,37,39,31,34,1,19,20,20,14,31,14,14,9,71,72,72,72,73,75,80,72,60,54,80,80,90,90,89,89,89,87,102,93,90,87,97,94,94,72,80,72,87,87,87,87,87,70,87,87,87,87,93,94,101,94,101,87,106,95,104,87,110,91,94,87,94,60,94,10,42,8,51,51,51,51,51,16,18,20,132,20,32,0,132,132,194,189,587,514,662,641,626,625,625,608,595,595,580,524,10766,29941,9759,6934,5214,2423,29979,29980,29970,29975,29984,29978,29986,29987,29987,29988,29988,29989]} 1. Nf3 {[%emt 0:00:18]} Nf6 {[%emt 0:00:04]} 2. b3 {[%emt 0:00:26]} g6 {[%emt 0:00:07]} 3. Bb2 {[%emt 0:00:23]} Bg7 {[%emt 0:00:06]} 4. g3 {[%emt 0:00:28]} d5 {[%emt 0:00:07]} 5. c4 {[%emt 0:00:19]} O-O {[%emt 0:00:05]} 6. Bg2 {[%emt 0:00:29]} Nc6 {[%emt 0:00:17] A05: Réti Opening: 1 Nf3 Nf6.} 7. cxd5 {[%emt 0:02:55]} Nxd5 {[%emt 1:33:14] 7...Nxd5 is better than 7...Qxd5.} 8. Bxg7 {[%emt 0:12:48]} Kxg7 {[%emt 0:00:00] White is slightly better.} 9. Qc1 {[%emt 0:00:07]} (9. d4 $14) 9... e5 $11 {[%emt 0:00:00]} 10. Qb2 {[%emt 0:00:41]} Qf6 {[%emt 0:00:00]} 11. d3 {[%emt 0:02:04]} e4 {[%emt 0:00:00]} 12. Qxf6+ {[%emt 0:00:03]} Nxf6 {[%emt 0:00:00]} 13. dxe4 {[%emt 0:00:02]} Nxe4 {[%emt 0:00:00]} 14. Nfd2 {[%emt 0:00:25]} Nxd2 {[%emt 0:00:00]} 15. Nxd2 {[%emt 0:01:32][%cal Bb1d2,Bd2e4,Be4c5][%mdl 32] [#]} Nd4 $146 {[%emt 0:00:00][%cal Bc6d4,Bd4b5,Bb5d6,Bd6f5][%mdl 32] Threatens to win with ...Nc2+.} ({Predecessor:} 15... a5 16. Bxc6 bxc6 17. a4 Be6 18. f3 Rfd8 19. Ne4 Bxb3 20. Nc5 Bc4 21. Rc1 Rab8 {½-½ (40) Bernadskiy,V (2511)-Lorparizangeneh,S (2404) Albena 2015}) 16. Rc1 {[%emt 0:00:26] Against Nc2+} c6 {[%emt 0:00:00]} 17. e3 {[%emt 0:00:37]} Nb5 {[%emt 0:00:00]} 18. Ne4 {[%emt 0:02:03]} Bf5 {[%emt 0:00:00]} 19. Nc5 {[%emt 0:02:14]} Nd6 {[%emt 0:00:00]} (19... Rab8 $5) 20. O-O {[%emt 0:04:35]} Rad8 {[%emt 0:00:00]} 21. b4 {[%emt 0:00:39]} Bc8 {[%emt 0:00:00]} 22. a4 {[%emt 0:01:54]} Nf5 {[%emt 0:00:00]} 23. Rc2 {[%emt 0:00:51]} Rd6 {[%emt 0:00:00]} (23... b6 $5 {[%cal Rb6c5]} 24. Nb3 Be6 $11) 24. Rfc1 {[%emt 0:25:07]} Rfd8 {[%emt 0:00:00]} 25. Bf3 {[%emt 0:00:27] Prevents Rd1+.} Rd2 {[%emt 0:00:00]} 26. Rxd2 {[%emt 0:01:58]} Rxd2 {[%emt 0:00:00]} 27. b5 {[%emt 0:00:10]} cxb5 {[%emt 0:00:00]} (27... Ne7 $1 $11) 28. Ne4 $16 {[%emt 0:01:29]} ({But not} 28. Nxb7 Bxb7 29. Bxb7 Nd6 $17) 28... Rd8 {[%emt 0:00:00]} 29. axb5 {[%emt 0:00:03]} Ne7 {[%emt 0:00:00]} 30. Ra1 $1 {[%emt 0:03:39] White is more active.} a6 {[%emt 0:00:00]} 31. bxa6 {[%emt 0:08:00]} bxa6 {[%emt 0:00:00]} 32. Be2 {[%emt 0:00:22]} Rd5 {[%emt 0:00:00]} 33. Bxa6 {[%emt 0:00:49]} Bxa6 {[%emt 0:00:00]} 34. Rxa6 {[%emt 0:00:02][%mdl 4096] Endgame KRN-KRN} Re5 {[%emt 0:00:00]} 35. Nd2 {[%emt 0:00:22]} Rd5 {[%emt 0:00:00]} 36. Nf3 {[%emt 0:00:06]} Rd7 {[%emt 0:00:00]} 37. Kg2 {[%emt 0:00:11]} h5 {[%emt 0:00:00]} 38. Nd4 {[%emt 0:00:17]} Rb7 {[%emt 0:00:00]} 39. Kf3 {[%emt 0:00:09]} Nd5 {[%emt 0:00:00]} 40. h4 {[%emt 0:00:17]} Nf6 {[%emt 0:00:00]} 41. Ra2 {[%emt 0:31:34]} Ng4 {[%emt 0:29:28]} 42. Kf4 {[%emt 0:00:59]} Re7 {[%emt 0:02:43]} 43. e4 {[%emt 0:04:20]} Rd7 {[%emt 0:05:57]} 44. Nb5 {[%emt 0:00:34]} Rb7 {[%emt 0:02:45]} 45. Nc3 {[%emt 0:00:17]} Nf6 {[%emt 0:06:19]} 46. f3 {[%emt 0:01:52]} Rd7 {[%emt 0:00:32]} 47. Ke3 {[%emt 0:00:20]} Re7 {[%emt 0:00:50]} 48. Ra5 {[%emt 0:00:18]} Rb7 {[%emt 0:00:42]} 49. Ra3 {[%emt 0:00:40]} Rd7 {[%emt 0:00:24]} 50. Ra6 {[%emt 0:00:35]} Rb7 {[%emt 0:00:26]} 51. Rc6 {[%emt 0:00:38]} Ra7 {[%emt 0:00:00]} 52. Kd4 {[%emt 0:00:00]} Nd7 {[%emt 0:00:00]} 53. Rc8 {[%emt 0:00:00]} Nf8 {[%emt 0:00:00]} 54. Ke5 {[%emt 0:00:00]} Ra1 {[%emt 0:00:00]} 55. f4 {[%emt 0:00:00]} (55. Kf4 $16) 55... Rg1 $1 $11 {[%emt 0:00:00]} 56. Ne2 {[%emt 0:00:00]} Rg2 {[%emt 0:00:00]} 57. Rc2 {[%emt 0:00:00]} Nd7+ {[%emt 0:00:00]} 58. Kd4 {[%emt 0:00:00]} Nf6 $1 {[%emt 0:00:00]} 59. e5 {[%emt 0:00:00]} Ng4 {[%emt 0:00:00]} 60. Ke4 {[%emt 0:00:00]} Kh6 {[%emt 0:00:00]} (60... Kf8 $11 {keeps the balance.}) 61. Ra2 {[%emt 0:00:00]} (61. Nd4 $1 $16 Rxg3 62. Rc7) 61... Kg7 {[%emt 0:00:00]} 62. Rc2 {[%emt 0:02:24]} (62. Kd3 $14) 62... Kh6 $16 {[%emt 0:00:00] [#]} 63. Nd4 $1 {[%emt 0:00:43] White leaves nothing to chance now.} Rxg3 {[%emt 0:00:00]} (63... f5+ $16 {keeps fighting.} 64. Kf3 Rh2) 64. Rc7 $18 {[%emt 0:00:02]} Re3+ $2 {[%emt 0:00:00]} (64... Kg7) 65. Kd5 {[%emt 0:00:02]} Kg7 {[%emt 0:00:00]} 66. Ne6+ {[%emt 0:01:20]} Kg8 {[%emt 0:00:00] [#]} 67. Rc8+ $1 {[%emt 0:00:02]} Kh7 {[%emt 0:00:00]} 68. Ng5+ {[%emt 0:00:03]} Kg7 {[%emt 0:00:00]} 69. Rc7 {[%emt 0:00:03]} Rd3+ {[%emt 0:00:00]} 70. Kc4 {[%emt 0:00:22]} Rd1 {[%emt 0:00:00]} 71. Rxf7+ {[%emt 0:00:11]} Kg8 {[%emt 0:00:00]} 72. e6 {[%emt 0:00:54] Strongly threatening Kc5.} Rd8 {[%emt 0:00:00]} 73. Kc5 {[%emt 0:02:16]} (73. e7 $142 Ne3+ 74. Kc5) 73... Nh6 {[%emt 0:00:00]} 74. Rd7 {[%emt 0:00:13] White mates.} Rc8+ {[%emt 0:00:41]} 75. Kd6 {[%emt 0:01:27]} Re8 {[%emt 0:00:33]} 76. Ne4 {[%emt 0:02:25]} Ng4 {[%emt 0:00:39]} 77. e7 {[%emt 0:00:46]} Kf7 {[%emt 0:00:26]} 78. Rd8 {[%emt 0:00:49]} Rxe7 {[%emt 0:00:14]} 79. Ng5+ {[%emt 0:00:02] Weighted Error Value: White=0.10 (very precise) /Black=0.12 (very precise)} 1-0

[Event "Bangabandhu Premier Div League 2022"]
[Site "Dhaka"]
[Date "2022.12.08"]
[Round "9.3"]
[White "Mohammad Nubairshah Shaikh"]
[Black "Narayanan.S.L"]
[Result "0-1"]
[ECO "E32"]
[WhiteElo "2439"]
[BlackElo "2673"]
[Annotator "TA"]
[PlyCount "52"]
[EventDate "2022.12.01"]
[EventCountry "BAN"]
[SourceTitle "playchess.com"]
[Source "ChessBase"]
[SourceQuality "1"]
[TimeControl "40/5400+30:1800+30"]

{[%evp 9,52,12,29,20,19,23,32,15,42,49,71,71,71,76,77,57,90,73,116,70,76,73,75,70,84,47,36,52,46,50,67,70,66,66,61,-328,-318,-304,-306,-1089,-1068,-29996,-29997,-29998,-29999]} 1. d4 {[%emt 0:05:54]} Nf6 {[%emt 0:00:08]} 2. c4 {[%emt 0:00:05]} e6 {[%emt 0:00:05]} 3. Nc3 {[%emt 1:26:01]} Bb4 {[%emt 0:00:06]} 4. Qc2 {[%emt 0:00:00]} d6 {[%emt 0:00:08]} 5. e3 {[%emt 0:01:00]} O-O {[%emt 0:01:06]} 6. Bd3 {[%emt 0:00:30] E32: Nimzo-Indian: Classical (4 Qc2): 4...0-0.} c5 {[%emt 0:04:55]} 7. Nge2 {[%emt 0:00:00]} Nc6 {[%emt 0:02:32]} 8. O-O {[%emt 0:00:00] White is slightly better.} Bxc3 9. Qxc3 {[%emt 0:01:30]} e5 {[%emt 1:26:00]} 10. d5 {[%emt 0:00:30]} Ne7 {[%emt 0:00:30]} 11. e4 {[%emt 0:00:30]} Nh5 {[%emt 0:00:30]} 12. b4 {[%emt 0:00:30] [#]} cxb4 $146 {[%emt 0:00:00]} ({Predecessor:} 12... b6 13. bxc5 bxc5 14. f4 exf4 15. e5 g5 16. exd6 Qxd6 17. g3 Bf5 18. Bxf5 Nxf5 {1-0 (52) Doroshkievich,V-Romanishin,O Yerevan 1975}) 13. Qxb4 {[%emt 0:00:00]} Ng6 14. a4 {[%emt 0:01:00]} (14. c5 $16) 14... a5 $14 {[%emt 0:01:30]} 15. Qb2 {[%emt 0:00:30]} Nhf4 {[%emt 0:00:30]} 16. Nxf4 {[%emt 0:00:00]} exf4 {[%emt 0:00:30]} 17. Ra3 {[%emt 0:01:00]} f3 {[%emt 0:00:30]} 18. gxf3 {[%emt 0:00:00]} Bh3 {[%emt 0:00:30]} 19. Re1 {[%emt 0:00:00][%cal Of3f4]} Qh4 {Prevents f4.} 20. Kh1 $1 {[%emt 0:01:30]} (20. Qxb7 $2 Rfb8 $19) 20... Rae8 {[%emt 0:00:00][%cal Ba8e8,Be8e5,Be5h5][%mdl 32] ...Re5 is the strong threat.} 21. Rg1 $1 {[%emt 0:00:30] Hoping for Bg5.} (21. Qxb7 {gets mated.} Qxf2) 21... Re5 {[%emt 0:01:30] Against Bg5. Strongly threatening ...Rh5.} 22. Qb6 $2 {[%emt 0:00:30][%mdl 8192] White does not recover from this.} (22. Qxb7 Rh5 23. Rg3 Bg4 $1 {[%mdl 512]} 24. Kg2 Qxh2+ 25. Kf1 Qh1+ 26. Ke2 Qxc1 27. fxg4 Rh1) (22. Be2 $1 $14 {stays ahead.}) 22... Rh5 $1 $19 {[%emt 0:00:00][%cal Oh3g4]} 23. Qxd6 {[%emt 0:00:00] [#] aiming for Qg3.} (23. Qxb7 {is a self mate.} Bf1 $1 {[%mdl 512]} 24. Rg2 Bxg2+ 25. Kxg2 Qh3+ 26. Kg1 Nh4) 23... Ne5 $1 {[%emt 0:01:00][%cal Oh3g4] And now ...Bg4! would win.} 24. Bb2 $2 {[%emt 0:01:00]} (24. Be2 Qxf2 25. Qf6) 24... Qxf2 {[%emt 0:00:00]} 25. Bc2 {[%emt 0:00:30] [#]} Rg5 $3 {[%emt 0:01:00][%mdl 576] Deflection} 26. Rxg5 {[%emt 0:00:00]} (26. Qxf8+ Kxf8) 26... Qf1+ {[%emt 0:00:00] Weighted Error Value: White=0.81/Black=0.07 (flawless)} 0-1

[Event "Bangabandhu Premier Div League 2022"]
[Site "Dhaka"]
[Date "2022.12.08"]
[Round "9.4"]
[White "Idani, Pouya"]
[Black "Ikramul, Haq Siam"]
[Result "1/2-1/2"]
[ECO "A20"]
[WhiteElo "2631"]
[BlackElo "2099"]
[Annotator "TA"]
[PlyCount "77"]
[EventDate "2022.12.01"]
[EventCountry "BAN"]
[SourceTitle "playchess.com"]
[Source "ChessBase"]
[SourceQuality "1"]
[TimeControl "40/5400+30:1800+30"]

{[%evp 9,77,0,26,32,27,25,21,12,45,38,31,34,29,-23,71,72,81,83,107,78,93,78,89,44,68,46,52,42,101,103,108,105,122,75,92,69,95,71,81,0,18,25,14,33,44,34,41,18,73,30,96,-72,755,183,1325,1279,1783,1151,5585,5322,29995,2121,29994,658,602,573,573,197,1526,988]} 1. c4 {[%emt 0:00:02]} e5 {[%emt 0:00:58]} 2. d3 {[%emt 0:00:09]} Bb4+ {[%emt 0:01:34]} 3. Nd2 {[%emt 0:00:57]} a5 {[%emt 0:00:10]} 4. Ngf3 {[%emt 0:00:29]} Nc6 {[%emt 0:00:06] [#]} 5. a3 $146 {[%emt 0:01:08]} ({Predecessor:} 5. e3 Nf6 6. Be2 O-O 7. O-O Re8 8. a3 Bf8 9. b3 d6 10. Qc2 Bg4 11. Re1 {½-½ (27) Csom,I (2415)-Taimanov,M (2439) Saint Vincent 2001}) 5... Bc5 {[%emt 1:30:12]} 6. e3 {[%emt 0:03:12] A20: English Opening: 1...e5.} d6 {[%emt 0:00:00]} 7. b3 {[%emt 1:28:03]} Nf6 {[%emt 0:00:00]} 8. Bb2 {The position is equal.} h6 {[%emt 0:00:00]} 9. d4 exd4 {[%emt 0:00:00]} 10. exd4 {[%emt 0:00:00]} Ba7 {[%emt 0:00:00]} 11. Qc2 {[%emt 0:00:00]} ({Better is} 11. Bd3) 11... Qe7+ {[%emt 0:00:00]} (11... O-O $11 {keeps the balance.}) 12. Be2 $16 {[%emt 0:00:00][%cal Oe1g1]} O-O {[%emt 0:00:00] [#]} 13. O-O $1 Bg4 {[%emt 0:00:00]} (13... Qxe2 $2 14. Rae1 $18) (13... d5 14. Rfe1) 14. Bd3 Rae8 {[%emt 0:00:00]} 15. Bc3 d5 {[%emt 0:00:00]} 16. h3 Be6 {[%emt 0:00:00]} 17. c5 Nh5 {[%emt 0:00:00]} 18. b4 {[%cal Bb3b4,Bb4b5][%mdl 32]} Nf4 {[%emt 0:06:30]} (18... axb4 $14 19. axb4 Bb8) 19. b5 {[%emt 0:00:00]} Nd8 {[%emt 0:00:30]} 20. Bxa5 {[%emt 0:00:00]} c6 {[%emt 0:00:00]} 21. Rfe1 {[%emt 0:00:00]} ({White should try} 21. a4) 21... Bb8 {[%emt 0:01:00]} 22. Bxd8 {[%emt 0:00:00] White is more active.} Qxd8 23. bxc6 {[%emt 0:00:00]} bxc6 {[%emt 0:00:00]} 24. Bh7+ {[%emt 0:00:00]} (24. Bf1 $16) 24... Kh8 $11 {[%emt 0:00:00] aiming for ...g6.} 25. Bf5 {[%emt 0:00:00]} Qf6 {[%emt 0:00:00]} 26. Bxe6 {[%emt 0:00:00]} Nxe6 {[%emt 0:00:00]} 27. Qd3 g5 {[%emt 0:00:00]} 28. g3 Rg8 {[%emt 0:03:30]} (28... h5 $1 $11) 29. Ne5 {[%emt 0:11:00]} (29. a4 $5) 29... Nxc5 (29... Bxe5 $11 30. dxe5 Qg6 31. Qxg6 Rxg6) 30. dxc5 $2 {[%emt 0:00:00]} (30. Qc3 $16 {stays on course.} Ne6 31. Qxc6 (31. Nxc6 $2 {is the wrong capture.} Rc8 $19)) 30... Kg7 $2 {[%mdl 8192] Loses the game.} (30... Bxe5 $17 31. Rab1 Bd4) 31. Nxf7 $2 {[%emt 0:00:00]} Bd6 $2 {[%emt 0:00:13]} (31... Rgf8 32. Nf3 Rxe1+ 33. Rxe1 Rxf7) 32. cxd6 {[%emt 0:00:00]} c5 {[%emt 0:00:45]} 33. Kf1 {[%emt 0:00:00] Rxe8 is the strong threat.} Rxe1+ {[%emt 0:00:49]} 34. Rxe1 {[%emt 0:00:00] Threatening mate with Re7.} Qxd6 {[%emt 0:00:04]} 35. a4 {[%emt 0:00:00]} (35. Nxd6 $142 Kh8 36. Re7 Rg7 37. Re8+ Rg8 38. Qg6 Rxe8 39. Nf7#) 35... Rf8 {[%emt 0:00:31]} 36. Rb1 {[%emt 0:00:00]} (36. Nxd6 $142 Rf7 37. Nxf7 c4 38. Qxd5 Kg8 39. Nxg5+ Kh8 40. Re8+ Kg7 41. Qf7#) 36... Rxf7 $18 {[%emt 0:00:32]} 37. Kg1 {[%emt 0:00:00]} Qf6 {[%emt 0:00:16]} 38. a5 $2 {[%emt 0:00:00]} (38. Qe3) 38... Re7 $2 {[%emt 0:00:01]} (38... Qxf2+ 39. Kh1 c4 40. Qxd5 Qxg3 41. Qd4+ (41. Nxc4 Qxh3+ 42. Kg1 Qg4+ 43. Kh1 Qh4+ 44. Kg1 Qg4+ 45. Kh1 Qh4+ 46. Kg1 Qg4+ $11) 41... Kh7) 39. Qa3 {[%emt 0:00:00][%mdl 32768] Weighted Error Value: White=0.70/Black=0.64. An unexpected result.} 1/2-1/2